fUSD/lending_fUSD_20250422
["ID","MTS","AMOUNT","RATE_DAILY","PERIOD"]
[358615981,1745312033312,-500.0,0.00056986,120]
[358615982,1745312033346,-500.0,0.00056986,120]
[358615983,1745312033381,-346.72816308,0.00056986,120]
[358615984,1745312033420,-500.0,0.00056986,120]
[358615985,1745312033455,-500.0,0.00056986,120]
[358615986,1745312033489,-500.0,0.00056986,120]
[358615987,1745312033525,-500.0,0.00056986,120]
[358615988,1745312033561,-500.0,0.00056986,120]
[358615989,1745312033595,-500.0,0.00056986,120]
[358615990,1745312033632,-500.0,0.00056986,120]
[358615991,1745312033668,-500.0,0.00056986,120]
[358615992,1745312033707,-500.0,0.00056986,120]
[358615993,1745312033746,-500.0,0.00056986,120]
[358615994,1745312033783,-326.81953448,0.00056986,120]
[358615995,1745312033819,-500.0,0.00056986,120]
[358615996,1745312033857,-500.0,0.00056986,120]
[358615997,1745312033894,-528.49,0.00056986,120]
[358615998,1745312033930,-3562.71,0.00056986,120]
[358615999,1745312033967,-500.0,0.00056986,120]
[358616000,1745312034005,-500.0,0.00056986,120]
[358616001,1745312034045,-150.20269849,0.00056986,120]
[358616002,1745312034084,-500.0,0.00056986,120]
[358616003,1745312034122,-500.0,0.00056986,120]
[358616004,1745312034160,-500.0,0.00056986,120]
[358616005,1745312034198,-855.36,0.00056986,120]
[358616006,1745312034237,-500.0,0.00056986,120]
[358616007,1745312034274,-500.0,0.00056986,120]
[358616008,1745312034311,-500.0,0.00056986,120]
[358616009,1745312034346,-500.0,0.00056986,120]
[358616010,1745312034382,-500.0,0.00056986,120]
[358616011,1745312034419,-500.0,0.00056986,120]
[358616012,1745312034456,-500.0,0.00056986,120]
[358616013,1745312034492,-988.96,0.00056986,120]
[358616014,1745312034528,-500.0,0.00056986,120]
[358616015,1745312034564,-500.0,0.00056986,120]
[358616016,1745312034600,-500.0,0.00056986,120]
[358616017,1745312034636,-500.0,0.00056986,120]
[358616018,1745312034671,-500.0,0.00056986,120]
[358616019,1745312034704,-524.35,0.00056986,120]
[358616020,1745312034742,-500.0,0.00056986,120]
[358616021,1745312034776,-500.0,0.00056986,120]
[358616022,1745312034813,-500.0,0.00056986,120]
[358616023,1745312034849,-795.78,0.00056986,120]
[358616024,1745312034889,-500.0,0.00056986,120]
[358616025,1745312034929,-500.0,0.00056986,120]
[358616026,1745312034970,-500.0,0.00056986,120]
[358616027,1745312035010,-500.0,0.00056986,120]
[358616028,1745312035050,-500.0,0.00056986,120]
[358616029,1745312035088,-904.36,0.00056986,120]
[358616030,1745312035126,-1191.65,0.00056986,120]
[358616031,1745312035162,-605.29,0.00056986,120]
[358616032,1745312035199,-500.0,0.00056986,120]
[358616033,1745312035236,-915.69114781,0.00056986,120]
[358616034,1745312035275,-500.0,0.00056986,120]
[358616035,1745312035312,-500.0,0.00056986,120]
[358616036,1745312035350,-500.0,0.00056986,120]
[358616037,1745312035389,-500.0,0.00056986,120]
[358616038,1745312035426,-500.0,0.00056986,60]
[358616039,1745312035462,-523.03,0.00056986,120]
[358616040,1745312035498,-500.0,0.00056986,120]
[358616041,1745312035535,-500.0,0.00056986,120]
[358616042,1745312035571,-500.0,0.00056986,120]
[358616043,1745312035612,-500.0,0.00056986,120]
[358616044,1745312035648,-151.0,0.00056986,120]
[358616045,1745312035688,-500.0,0.00056986,120]
[358616046,1745312035727,-500.0,0.00056986,120]
[358616047,1745312035767,-500.0,0.00056986,56]
[358616048,1745312035809,-500.0,0.00056986,120]
[358616049,1745312035847,-83185.02,0.00056986,120]
[358616050,1745312035887,-288.28746719,0.00056986,120]
[358616051,1745312035924,-500.0,0.00056986,120]
[358616052,1745312035959,-151.0,0.00056986,120]
[358616053,1745312035995,-273.21047026,0.00056996,120]
[358616054,1745312036030,-2110.0,0.00056999,30]
[358616055,1745312036068,-50000.0,0.00057,57]
[358616056,1745312036104,-44071.0,0.00057,120]
[358616057,1745312036141,-2006.6,0.00057,120]
[358616058,1745312036178,-151.0,0.00057,120]
[358616059,1745312036215,-7118.0,0.00057,30]
[358616060,1745312036252,-150.0,0.00057005,120]
[358616061,1745312036290,-150.0,0.00057016,120]
[358616062,1745312036326,-273.21047026,0.00057028,120]
[358616063,1745312036363,-150.0,0.00057035,120]
[358616064,1745312036399,-150.0,0.00057038,120]
[358616065,1745312036599,-150.0,0.00057044,120]
[358616066,1745312036642,-150.0,0.00057057,120]
[358616067,1745312036682,-150.0,0.00057059,120]
[358616068,1745312036721,-273.21047026,0.0005706,120]
[358616069,1745312036759,-273.21047026,0.00057093,120]
[358616070,1745312036795,-150.0,0.00057102,120]
[358616071,1745312036836,-150.0,0.00057102,120]
[358616072,1745312036874,-150.0,0.00057113,120]
[358616073,1745312036912,-150.0,0.00057115,120]
[358616074,1745312036948,-273.21047026,0.00057125,120]
[358616075,1745312036984,-150.0,0.00057144,120]
[358616076,1745312037021,-150.0,0.00057151,120]
[358616077,1745312037058,-273.21047026,0.00057157,120]
[358616078,1745312037094,-500.0,0.00057164,120]
[358616079,1745312037135,-150.0,0.00057166,120]
[358616080,1745312037171,-150.0,0.00057181,120]
[358616081,1745312037207,-150.0,0.00057187,120]
[358616082,1745312037244,-273.21047026,0.0005719,120]
[358616083,1745312037281,-273.21047026,0.00057222,120]
[358616084,1745312037317,-150.0,0.00057226,120]
[358616085,1745312037353,-150.0,0.0005723,120]
[358616086,1745312037390,-150.0,0.0005723,120]
[358616087,1745312037427,-150.0,0.00057245,120]
[358616088,1745312037464,-150.0,0.00057249,120]
[358616089,1745312037501,-273.21047026,0.00057255,120]
[358616090,1745312037535,-500.0,0.0005726,120]
[358616091,1745312037570,-500.0,0.0005726,120]
[358616092,1745312037603,-530.36,0.0005726,120]
[358616093,1745312037637,-500.0,0.0005726,120]
[358616094,1745312037671,-435.43680706,0.0005726,120]
[358616095,1745312037709,-500.0,0.0005726,120]
[358616096,1745312037746,-500.0,0.0005726,120]
[358616097,1745312037784,-500.0,0.0005726,120]
[358616098,1745312037822,-500.0,0.0005726,120]
[358616099,1745312037858,-500.0,0.0005726,120]
[358616100,1745312037894,-500.0,0.0005726,120]
[358616101,1745312037932,-500.0,0.0005726,120]
[358616102,1745312037967,-500.0,0.0005726,120]
[358616103,1745312038002,-500.0,0.0005726,120]
[358616104,1745312038038,-503.12,0.0005726,120]
[358616105,1745312038075,-500.0,0.0005726,120]
[358616106,1745312038113,-500.0,0.0005726,120]
[358616107,1745312038149,-500.0,0.0005726,120]
[358616108,1745312038187,-500.0,0.0005726,120]
[358616109,1745312038224,-500.0,0.0005726,120]
[358616110,1745312038260,-500.0,0.0005726,120]
[358616111,1745312038294,-500.0,0.0005726,120]
[358616112,1745312038331,-500.0,0.0005726,120]
[358616113,1745312038366,-581.82222667,0.0005726,120]
[358616114,1745312038401,-500.0,0.0005726,120]
[358616115,1745312038438,-500.0,0.0005726,120]
[358616116,1745312038476,-500.0,0.0005726,120]
[358616117,1745312038515,-500.0,0.0005726,120]
[358616118,1745312038552,-252.019326,0.0005726,120]
[358616119,1745312038586,-500.0,0.0005726,120]
[358616120,1745312038620,-528.49,0.0005726,120]
[358616121,1745312038655,-3562.71,0.0005726,120]
[358616122,1745312038691,-151.0,0.0005726,120]
[358616123,1745312038727,-559.70508935,0.0005726,120]
[358616124,1745312038764,-500.0,0.0005726,120]
[358616125,1745312038803,-500.0,0.0005726,120]
[358616126,1745312038839,-500.0,0.0005726,120]
[358616127,1745312038877,-500.0,0.0005726,120]
[358616128,1745312038918,-855.36,0.0005726,120]
[358616129,1745312038959,-500.0,0.0005726,120]
[358616130,1745312039000,-500.0,0.0005726,120]
[358616131,1745312039039,-500.0,0.0005726,120]
[358616132,1745312039076,-500.0,0.0005726,120]
[358616133,1745312039114,-500.0,0.0005726,120]
[358616134,1745312039151,-500.0,0.0005726,120]
[358616135,1745312039189,-500.0,0.0005726,120]
[358616136,1745312039225,-988.96,0.0005726,120]
[358616137,1745312039267,-500.0,0.0005726,120]
[358616138,1745312039308,-440.29840984,0.0005726,120]
[358616139,1745312039346,-500.0,0.0005726,120]
[358616140,1745312039386,-500.0,0.0005726,120]
[358616141,1745312039431,-500.0,0.0005726,120]
[358616142,1745312039476,-524.35,0.0005726,120]
[358616143,1745312039519,-500.0,0.0005726,120]
[358616144,1745312039557,-383.55346961,0.0005726,120]
[358616145,1745312039594,-500.0,0.0005726,120]
[358616146,1745312039631,-795.78,0.0005726,120]
[358616147,1745312039667,-500.0,0.0005726,120]
[358616148,1745312039702,-500.0,0.0005726,120]
[358616149,1745312039738,-500.0,0.0005726,120]
[358616150,1745312039773,-500.0,0.0005726,120]
[358616151,1745312039809,-500.0,0.0005726,120]
[358616152,1745312039843,-904.36,0.0005726,120]
[358616153,1745312039880,-1191.65,0.0005726,120]
[358616154,1745312039916,-605.29,0.0005726,120]
[358616155,1745312039959,-500.0,0.0005726,120]
[358616156,1745312040005,-500.0,0.0005726,120]
[358616157,1745312040050,-500.0,0.0005726,120]
[358616158,1745312040092,-500.0,0.0005726,120]
[358616159,1745312040288,-500.0,0.0005726,120]
[358616160,1745312040330,-239.45828449,0.0005726,60]
[358616161,1745312040370,-500.0,0.0005726,120]
[358616162,1745312040410,-500.0,0.0005726,120]
[358616163,1745312040451,-523.03,0.0005726,120]
[358616164,1745312040491,-500.0,0.0005726,120]
[358616165,1745312040538,-500.0,0.0005726,120]
[358616166,1745312040579,-500.0,0.0005726,120]
[358616167,1745312040620,-500.0,0.0005726,120]
[358616168,1745312040660,-500.0,0.0005726,56]
[358616169,1745312040700,-500.0,0.0005726,120]
[358616170,1745312040740,-2367.21,0.0005726,120]
[358616171,1745312040780,-83185.02,0.0005726,120]
[358616172,1745312040819,-267.68007507,0.0005726,120]
[358616173,1745312040856,-1071.0,0.0005726,120]
[358616174,1745312040894,-200.0,0.00057261,30]
[358616175,1745312040929,-150.0,0.00057273,120]
[358616176,1745312040966,-273.21047026,0.00057287,120]
[358616177,1745312041003,-150.0,0.00057294,120]
[358616178,1745312041043,-226.82,0.000573,60]
[358616179,1745312041081,-150.0,0.00057315,120]
[358616180,1745312041119,-150.0,0.00057317,120]
[358616181,1745312041154,-273.21047026,0.00057319,120]
[358616182,1745312041191,-150.0,0.00057336,120]
[358616183,1745312041229,-150.0,0.00057339,120]
[358616184,1745312041268,-273.21047026,0.00057352,120]
[358616185,1745312041305,-2100.0,0.00057358,120]
[358616186,1745312041341,-150.0,0.00057358,120]
[358616187,1745312041378,-150.0,0.00057358,120]
[358616188,1745312041416,-765.11023147,0.00057366,120]
[358616189,1745312041455,-13349.00881438,0.00057369,120]
[358616190,1745312041492,-2986.33443423,0.00057373,120]
[358616191,1745312041529,-2100.0,0.00057373,120]
[358616192,1745312041566,-1727.86258444,0.00057376,120]
[358616193,1745312041602,-359.29960902,0.0005738,120]
[358616194,1745312041639,-2986.33443423,0.00057381,120]
[358616195,1745312041678,-2986.33443423,0.00057384,120]
[358616196,1745312041729,-273.21047026,0.00057384,120]
[358616197,1745312041770,-150.0,0.00057384,120]
[358616198,1745312041811,-150.0,0.00057385,120]
[358616199,1745312041849,-13349.00881438,0.0005739,120]
[358616200,1745312041886,-13349.00881438,0.0005739,120]
[358616201,1745312041923,-1727.86258444,0.00057392,120]
[358616202,1745312041960,-765.11023147,0.00057392,120]
[358616203,1745312042002,-359.29960902,0.00057395,120]
[358616204,1745312042041,-765.11023147,0.00057396,120]
[358616205,1745312042079,-418.48152104,0.00057401,120]
[358616206,1745312042117,-150.0,0.00057401,120]
[358616207,1745312042157,-418.48152104,0.00057409,120]
[358616208,1745312042197,-273.21047026,0.00057416,120]
[358616209,1745312042234,-150.0,0.00057422,120]
[358616210,1745312042272,-151.0,0.00057425,120]
[358616211,1745312042309,-150.0,0.00057434,120]
[358616212,1745312042345,-359.29960902,0.0005744,120]
[358616213,1745312042380,-13349.00881438,0.0005744,120]
[358616214,1745312042422,-2986.33443423,0.00057443,120]
[358616215,1745312042462,-150.0,0.00057444,120]
[358616216,1745312042501,-900.0,0.00057445,120]
[358616217,1745312042542,-150.0,0.00057447,120]
[358616218,1745312042581,-273.21047026,0.00057449,120]
[358616219,1745312042621,-150.0,0.00057454,120]
[358616220,1745312042663,-2986.33443423,0.00057456,120]
[358616221,1745312042701,-13349.00881438,0.00057458,120]
[358616222,1745312042739,-214.122638,0.00057458,120]
[358616223,1745312042782,-214.122638,0.00057458,120]
[358616224,1745312042820,-418.48152104,0.00057465,120]
[358616225,1745312042861,-13349.00881438,0.00057466,120]
[358616226,1745312042901,-359.29960902,0.00057468,120]
[358616227,1745312042939,-359.29960902,0.00057475,120]
[358616228,1745312042980,-273.21047026,0.00057481,120]
[358616229,1745312043018,-1727.86258444,0.00057484,120]
[358616230,1745312043059,-150.0,0.00057486,120]
[358616231,1745312043104,-150.0,0.00057486,120]
[358616232,1745312043148,-765.11023147,0.00057494,120]
[358616233,1745312043191,-2986.33443423,0.00057496,120]
[358616234,1745312043234,-359.29960902,0.00057496,120]
[358616235,1745312043277,-2133.056,0.00057498,71]
[358616236,1745312043319,-200.0,0.00057499,120]
[358616237,1745312043362,-2110.0,0.00057499,30]
[358616238,1745312043404,-1727.86258444,0.00057499,120]
[358616239,1745312043448,-200.0,0.00057508,120]
[358616240,1745312043491,-359.29960902,0.00057509,120]
[358616241,1745312043538,-2986.33443423,0.00057511,120]
[358616242,1745312043582,-273.21047026,0.00057513,120]
[358616243,1745312043625,-418.48152104,0.00057514,120]
[358616244,1745312043666,-150.0,0.00057522,120]
[358616245,1745312043707,-418.48152104,0.00057526,120]
[358616246,1745312043749,-150.0,0.00057528,120]
[358616247,1745312043791,-150.0,0.00057529,120]
[358616248,1745312043839,-506.92102976,0.00057534,120]
[358616249,1745312043881,-500.0,0.00057534,120]
[358616250,1745312043927,-414.85249079,0.00057534,120]
[358616251,1745312043970,-530.36,0.00057534,120]
[358616252,1745312044014,-500.0,0.00057534,120]
[358616253,1745312044057,-500.0,0.00057534,120]
[358616254,1745312044283,-500.0,0.00057534,120]
[358616255,1745312044327,-500.0,0.00057534,120]
[358616256,1745312044370,-500.0,0.00057534,120]
[358616257,1745312044411,-393.78439968,0.00057534,120]
[358616258,1745312044452,-500.0,0.00057534,120]
[358616259,1745312044493,-500.0,0.00057534,120]
[358616260,1745312044533,-500.0,0.00057534,120]
[358616261,1745312044574,-500.0,0.00057534,120]
[358616262,1745312044615,-503.12,0.00057534,120]
[358616263,1745312044657,-500.0,0.00057534,120]
[358616264,1745312044703,-500.0,0.00057534,120]
[358616265,1745312044746,-500.0,0.00057534,120]
[358616266,1745312044790,-500.0,0.00057534,120]
[358616267,1745312044835,-500.0,0.00057534,120]
[358616268,1745312044882,-500.0,0.00057534,120]
[358616269,1745312044925,-500.0,0.00057534,120]
[358616270,1745312044971,-273.38289344,0.00057534,120]
[358616271,1745312045015,-500.0,0.00057534,120]
[358616272,1745312045057,-500.0,0.00057534,120]
[358616273,1745312045099,-500.0,0.00057534,120]
[358616274,1745312045140,-500.0,0.00057534,120]
[358616275,1745312045181,-500.0,0.00057534,120]
[358616276,1745312045221,-528.49,0.00057534,120]
[358616277,1745312045260,-3562.71,0.00057534,120]
[358616278,1745312045300,-589.90840841,0.00057534,120]
[358616279,1745312045341,-500.0,0.00057534,120]
[358616280,1745312045381,-500.0,0.00057534,120]
[358616281,1745312045421,-500.0,0.00057534,120]
[358616282,1745312045461,-855.36,0.00057534,120]
[358616283,1745312045500,-500.0,0.00057534,120]
[358616284,1745312045541,-500.0,0.00057534,120]
[358616285,1745312045584,-500.0,0.00057534,120]
[358616286,1745312045625,-500.0,0.00057534,120]
[358616287,1745312045667,-500.0,0.00057534,120]
[358616288,1745312045707,-500.0,0.00057534,120]
[358616289,1745312045748,-500.0,0.00057534,120]
[358616290,1745312045789,-988.96,0.00057534,120]
[358616291,1745312045832,-500.0,0.00057534,120]
[358616292,1745312045873,-500.0,0.00057534,120]
[358616293,1745312045913,-500.0,0.00057534,120]
[358616294,1745312045950,-500.0,0.00057534,120]
[358616295,1745312045990,-524.35,0.00057534,120]
[358616296,1745312046029,-500.0,0.00057534,120]
[358616297,1745312046071,-500.0,0.00057534,120]
[358616298,1745312046109,-795.78,0.00057534,120]
[358616299,1745312046148,-500.0,0.00057534,120]
[358616300,1745312046185,-500.0,0.00057534,120]
[358616301,1745312046225,-500.0,0.00057534,120]
[358616302,1745312046264,-500.0,0.00057534,120]
[358616303,1745312046302,-365.35087567,0.00057534,120]
[358616304,1745312046341,-904.36,0.00057534,120]
[358616305,1745312046381,-1191.65,0.00057534,120]
[358616306,1745312046420,-605.29,0.00057534,120]
[358616307,1745312046458,-500.0,0.00057534,120]
[358616308,1745312046495,-500.0,0.00057534,120]
[358616309,1745312046533,-605.82233254,0.00057534,120]
[358616310,1745312046570,-500.0,0.00057534,120]
[358616311,1745312046607,-500.0,0.00057534,120]
[358616312,1745312046644,-500.0,0.00057534,120]
[358616313,1745312046681,-500.0,0.00057534,120]
[358616314,1745312046718,-523.03,0.00057534,120]
[358616315,1745312046755,-500.0,0.00057534,120]
[358616316,1745312046791,-500.0,0.00057534,120]
[358616317,1745312046831,-571.78927522,0.00057534,120]
[358616318,1745312046872,-500.0,0.00057534,120]
[358616319,1745312046910,-500.0,0.00057534,56]
[358616320,1745312046949,-562.73349507,0.00057534,120]
[358616321,1745312046988,-83185.02,0.00057534,120]
[358616322,1745312047029,-230.38,0.00057534,120]
[358616323,1745312047070,-418.48152104,0.00057538,120]
[358616324,1745312047111,-273.21047026,0.00057546,120]
[358616325,1745312047151,-150.0,0.0005755,120]
[358616326,1745312047192,-150.0,0.00057557,120]
[358616327,1745312047231,-150.0,0.00057572,120]
[358616328,1745312047272,-273.21047026,0.00057578,120]
[358616329,1745312047308,-2986.33443423,0.00057584,120]
[358616330,1745312047342,-1727.86258444,0.00057589,120]
[358616331,1745312047378,-150.0,0.0005759,120]
[358616332,1745312047416,-1727.86258444,0.00057593,120]
[358616333,1745312047454,-273.21047026,0.00057611,120]
[358616334,1745312047491,-13349.00881438,0.00057611,120]
[358616335,1745312047531,-359.29960902,0.00057613,120]
[358616336,1745312047567,-150.0,0.00057614,120]
[358616337,1745312047603,-150.0,0.00057614,120]
[358616338,1745312047639,-150.0,0.00057622,120]
[358616339,1745312047675,-765.11023147,0.00057629,120]
[358616340,1745312047712,-765.11023147,0.00057632,120]
[358616341,1745312047747,-418.48152104,0.00057633,120]
[358616342,1745312047784,-765.11023147,0.00057636,120]
[358616343,1745312047820,-273.21047026,0.00057643,120]
[358616344,1745312047856,-13349.00881438,0.00057645,120]
[358616345,1745312047894,-900.0,0.00057647,120]
[358616346,1745312047930,-150.0,0.00057657,120]
[358616347,1745312047966,-150.0,0.00057658,120]
[358616348,1745312048132,-150.0,0.00057668,120]
[358616349,1745312048262,-418.48152104,0.00057674,120]
[358616350,1745312048303,-273.21047026,0.00057675,120]
[358616351,1745312048344,-150.0,0.00057679,120]
[358616352,1745312048383,-765.11023147,0.00057681,120]
[358616353,1745312048424,-1727.86258444,0.00057692,120]
[358616354,1745312048465,-1727.86258444,0.00057693,120]
[358616355,1745312048509,-150.0,0.000577,120]
[358616356,1745312048550,-273.21047026,0.00057708,120]
[358616357,1745312048590,-150.0,0.00057716,120]
[358616358,1745312048628,-900.0,0.00057721,120]
[358616359,1745312048665,-150.73,0.00057726,30]
[358616360,1745312048703,-150.0,0.00057726,120]
[358616361,1745312048740,-273.21047026,0.0005774,120]
[358616362,1745312048776,-150.0,0.00057743,120]
[358616363,1745312048814,-150.0,0.00057743,120]
[358616364,1745312048862,-500.0,0.00057748,120]
[358616365,1745312048914,-273.21047026,0.00057772,120]
[358616366,1745312048962,-150.0,0.00057778,120]
[358616367,1745312049001,-150.0,0.00057785,120]
[358616368,1745312049040,-150.0,0.00057794,120]
[358616369,1745312049081,-273.21047026,0.00057805,120]
[358616370,1745312049119,-150.0,0.00057807,120]
[358616371,1745312049159,-500.0,0.00057808,120]
[358616372,1745312049205,-530.36,0.00057808,120]
[358616373,1745312049266,-500.0,0.00057808,120]
[358616374,1745312049317,-434.07444263,0.00057808,120]
[358616375,1745312049358,-490.96119818,0.00057808,120]
[358616376,1745312049400,-444.07422992,0.00057808,120]
[358616377,1745312049443,-500.0,0.00057808,120]
[358616378,1745312049487,-232.51889371,0.00057808,120]
[358616379,1745312049533,-500.0,0.00057808,120]
[358616380,1745312049579,-500.0,0.00057808,120]
[358616381,1745312049623,-467.19044157,0.00057808,120]
[358616382,1745312049667,-503.12,0.00057808,120]
[358616383,1745312049715,-500.0,0.00057808,120]
[358616384,1745312049758,-500.0,0.00057808,120]
[358616385,1745312049794,-500.0,0.00057808,120]
[358616386,1745312049832,-442.21779195,0.00057808,120]
[358616387,1745312049868,-500.0,0.00057808,120]
[358616388,1745312049908,-500.0,0.00057808,120]
[358616389,1745312049946,-558.5038829,0.00057808,120]
[358616390,1745312049983,-500.0,0.00057808,120]
[358616391,1745312050021,-500.0,0.00057808,120]
[358616392,1745312050058,-500.0,0.00057808,120]
[358616393,1745312050097,-500.0,0.00057808,120]
[358616394,1745312050133,-500.0,0.00057808,120]
[358616395,1745312050170,-528.49,0.00057808,120]
[358616396,1745312050206,-3562.71,0.00057808,120]
[358616397,1745312050246,-500.0,0.00057808,120]
[358616398,1745312050282,-261.8,0.00057808,120]
[358616399,1745312050318,-500.0,0.00057808,120]
[358616400,1745312050352,-855.36,0.00057808,120]
[358616401,1745312050388,-500.0,0.00057808,120]
[358616402,1745312050425,-500.0,0.00057808,120]
[358616403,1745312050465,-500.0,0.00057808,120]
[358616404,1745312050506,-500.0,0.00057808,120]
[358616405,1745312050546,-500.0,0.00057808,120]
[358616406,1745312050582,-500.0,0.00057808,120]
[358616407,1745312050618,-500.0,0.00057808,120]
[358616408,1745312050653,-988.96,0.00057808,120]
[358616409,1745312050687,-500.0,0.00057808,120]
[358616410,1745312050722,-500.0,0.00057808,120]
[358616411,1745312050755,-500.0,0.00057808,120]
[358616412,1745312050790,-500.0,0.00057808,120]
[358616413,1745312050826,-524.35,0.00057808,120]
[358616414,1745312050859,-500.0,0.00057808,120]
[358616415,1745312050895,-500.0,0.00057808,120]
[358616416,1745312050928,-795.78,0.00057808,120]
[358616417,1745312050962,-500.0,0.00057808,120]
[358616418,1745312050997,-500.0,0.00057808,120]
[358616419,1745312051033,-500.0,0.00057808,120]
[358616420,1745312051070,-500.0,0.00057808,120]
[358616421,1745312051104,-904.36,0.00057808,120]
[358616422,1745312051139,-1191.65,0.00057808,120]
[358616423,1745312051170,-605.29,0.00057808,120]
[358616424,1745312051202,-500.0,0.00057808,120]
[358616425,1745312051236,-500.0,0.00057808,120]
[358616426,1745312051269,-500.0,0.00057808,120]
[358616427,1745312051303,-500.0,0.00057808,120]
[358616428,1745312051338,-500.0,0.00057808,120]
[358616429,1745312051373,-500.0,0.00057808,120]
[358616430,1745312051407,-523.03,0.00057808,120]
[358616431,1745312051441,-500.0,0.00057808,120]
[358616432,1745312051475,-500.0,0.00057808,120]
[358616433,1745312051509,-500.0,0.00057808,120]
[358616434,1745312051542,-500.0,0.00057808,56]
[358616435,1745312051577,-83185.02,0.00057808,120]
[358616436,1745312051613,-150.0,0.00057811,120]
[358616437,1745312051657,-150.0,0.00057828,120]
[358616438,1745312051701,-273.21047026,0.00057837,120]
[358616439,1745312051740,-150.0,0.00057863,120]
[358616440,1745312051782,-273.21047026,0.0005787,120]
[358616441,1745312051820,-150.0,0.00057871,120]
[358616442,1745312051858,-150.0,0.00057871,120]
[358616443,1745312052025,-3616.69360586,0.00057888,120]
[358616444,1745312052063,-150.0,0.00057889,120]
[358616445,1745312052100,-32051.73950255,0.000579,120]
[358616446,1745312052135,-273.21047026,0.00057902,120]
[358616447,1745312052170,-150.0,0.00057905,120]
[358616448,1745312052203,-150.0,0.00057914,120]
[358616449,1745312052237,-150.0,0.00057931,120]
[358616450,1745312052270,-273.21047026,0.00057934,120]
[358616451,1745312052304,-150.0,0.00057935,120]
[358616452,1745312052337,-150.0,0.00057956,120]
[358616453,1745312052373,-273.21047026,0.00057967,120]
[358616454,1745312052406,-959.29977288,0.00057984,60]
[358616455,1745312052442,-216.0,0.0005799,30]
[358616456,1745312052476,-211.0,0.0005799,30]
[358616457,1745312052511,-209.0,0.0005799,30]
[358616458,1745312052544,-1000.0,0.00057999,120]
[358616459,1745312052578,-801.0,0.00057999,58]
[358616460,1745312052610,-292.36204035,0.00057999,120]
[358616461,1745312052645,-154.15220848,0.00057999,120]
[358616462,1745312052679,-273.21047026,0.00057999,120]
[358616463,1745312052715,-163.84246132,0.00057999,120]
[358616464,1745312052749,-151.72513008,0.00057999,120]
[358616465,1745312052785,-176.54119134,0.00057999,120]
[358616466,1745312052821,-238.24999346,0.00057999,120]
[358616467,1745312052857,-229.70981322,0.00057999,120]
[358616468,1745312052894,-255.93739752,0.00057999,120]
[358616469,1745312052930,-2110.0,0.00057999,30]
[358616470,1745312052967,-50000.0,0.00058,58]
[358616471,1745312053002,-10000.0,0.00058,30]
[358616472,1745312053037,-1393035.01987335,0.00058,30]
[358616473,1745312053072,-132474.40524559,0.00058,30]
[358616474,1745312053108,-600.0,0.00058,120]
[358616475,1745312053142,-1859.66077022,0.00058,120]
[358616476,1745312053176,-494848.52010636,0.00058,30]
[358616477,1745312053210,-700.0,0.00058,120]
[358616478,1745312053242,-269393.20860548,0.00058,30]
[358616479,1745312053274,-286.23249822,0.00058,120]
[358616480,1745312053309,-214.122638,0.00058,120]